{"text_format":"1","workbook":"xlsx","n_sheets":1,"sheets":["Foglio1"],"not_rendered":{"charts":2,"images":0,"macros":1,"external_links":0,"defined_names":5,"comments":0,"pivot_tables":0},"unopened":[],"bounds":{"document_bytes":16777216,"sheet_cells":100000,"rows_first":2000,"rows_last":500,"rows_between":2000,"halvings":0,"cell_chars":16384,"cell_head_chars":4096},"cells_cut":0,"cells_raw":0,"read":"whole","date_system":"1900"}

{"sheet":"Foglio1","index":0,"n_rows":67,"n_cols":30,"rows_kept":67,"cut":false,"hidden":false,"merged":[[3,2,3,6]]}
[]
[null,"Metodo del punto unito",null,null,null,null,null,"xn+1=g(xn)"]
[]
[null,"g(x)=","cos(x)"]
[]
[]
[]
[]
[]
[null,"xn",null,"# iter",9,null,null,null,null,null,null,null,null,null,null,null,null,null,null,1]
["x0",1.5,null,null,null,null,null,null,null,null,null,null,null,null,null,null,null,null,"passo",{"$f":"(E13-E12)/50","v":3.1560000000000005E-2}]
["x1",{"$f":"f(espressioneG,B11)","v":{"$error":"#NAME?"}},null,"xmin",0]
["x2",{"$f":"f(espressioneG,B12)","v":{"$error":"#NAME?"}},null,"xmax",1.5780000000000001]
["x3",{"$error":"#NAME?"}]
["x4",{"$error":"#NAME?"},null,null,null,null,null,null,null,null,null,null,null,null,null,null,null,null,null,"GRAFICO DI y=g(x)",null,null,null,null,0]
["x5",{"$error":"#NAME?"},null,null,null,null,null,null,null,null,null,null,null,null,null,null,null,null,null,"x","y=g(x)",null,null,null,0,{"$f":"B11","v":1.5},{"$f":"0","v":0}]
["x6",{"$error":"#NAME?"},null,null,null,null,null,null,null,null,null,null,null,null,null,null,null,null,null,{"$f":"E12","v":0},{"$f":"f(espressioneG,T17)","v":{"$error":"#NAME?"}},{"$f":"T17","v":0},null,null,{"$f":"IF(Y16=Y15,Y16+1,Y16)","v":1},{"$f":"Z16","v":1.5},{"$f":"f(espressioneG,Z16)","v":{"$error":"#NAME?"}},null,{"$f":"Z17","v":1.5},{"$f":"AA17","v":{"$error":"#NAME?"}}]
["x7",{"$error":"#NAME?"},null,null,null,null,null,null,null,null,null,null,null,null,null,null,null,null,null,{"$f":"T17+$T$11","v":3.1560000000000005E-2},{"$f":"f(espressioneG,T18)","v":{"$error":"#NAME?"}},{"$f":"T18","v":3.1560000000000005E-2},null,null,{"$f":"IF(Y17=Y16,Y17+1,Y17)","v":1},{"$f":"AA17","v":{"$error":"#NAME?"}},{"$f":"Z18","v":{"$error":"#NAME?"}},null,{"$f":"IF(Y18<=iter,Z18,AC17)","v":{"$error":"#NAME?"}},{"$f":"IF(Y18<=iter,AA18,AD17)","v":{"$error":"#NAME?"}}]
["x8",{"$error":"#NAME?"},null,null,null,null,null,null,null,null,null,null,null,null,null,null,null,null,null,6.3120000000000009E-2,{"$error":"#NAME?"},6.3120000000000009E-2,null,null,2,{"$f":"Z18","v":{"$error":"#NAME?"}},{"$f":"f(espressioneG,Z18)","v":{"$error":"#NAME?"}},null,{"$f":"IF(Y19<=iter,Z19,AC18)","v":{"$error":"#NAME?"}},{"$f":"IF(Y19<=iter,AA19,AD18)","v":{"$error":"#NAME?"}}]
["x9",{"$error":"#NAME?"},null,null,null,null,null,null,null,null,null,null,null,null,null,null,null,null,null,9.4680000000000014E-2,{"$error":"#NAME?"},9.4680000000000014E-2,null,null,2,{"$f":"AA19","v":{"$error":"#NAME?"}},{"$f":"Z20","v":{"$error":"#NAME?"}},null,{"$error":"#NAME?"},{"$error":"#NAME?"}]
["x10",{"$error":"#NAME?"},null,null,null,null,null,null,null,null,null,null,null,null,null,null,null,null,null,0.12624000000000002,{"$error":"#NAME?"},0.12624000000000002,null,null,3,{"$f":"Z20","v":{"$error":"#NAME?"}},{"$f":"f(espressioneG,Z20)","v":{"$error":"#NAME?"}},null,{"$error":"#NAME?"},{"$error":"#NAME?"}]
["x11",{"$error":"#NAME?"},null,null,null,null,null,null,null,null,null,null,null,null,null,null,null,null,null,0.15780000000000002,{"$error":"#NAME?"},0.15780000000000002,null,null,3,{"$f":"AA21","v":{"$error":"#NAME?"}},{"$f":"Z22","v":{"$error":"#NAME?"}},null,{"$error":"#NAME?"},{"$error":"#NAME?"}]
["x12",{"$error":"#NAME?"},null,null,null,null,null,null,null,null,null,null,null,null,null,null,null,null,null,0.18936000000000003,{"$error":"#NAME?"},0.18936000000000003,null,null,4,{"$f":"Z22","v":{"$error":"#NAME?"}},{"$f":"f(espressioneG,Z22)","v":{"$error":"#NAME?"}},null,{"$error":"#NAME?"},{"$error":"#NAME?"}]
["x13",{"$error":"#NAME?"},null,null,null,null,null,null,null,null,null,null,null,null,null,null,null,null,null,0.22092000000000003,{"$error":"#NAME?"},0.22092000000000003,null,null,4,{"$f":"AA23","v":{"$error":"#NAME?"}},{"$f":"Z24","v":{"$error":"#NAME?"}},null,{"$error":"#NAME?"},{"$error":"#NAME?"}]
["x14",{"$error":"#NAME?"},null,null,null,null,null,null,"qwdwqd",null,null,null,null,null,null,null,null,null,null,0.25248000000000004,{"$error":"#NAME?"},0.25248000000000004,null,null,5,{"$f":"Z24","v":{"$error":"#NAME?"}},{"$f":"f(espressioneG,Z24)","v":{"$error":"#NAME?"}},null,{"$error":"#NAME?"},{"$error":"#NAME?"}]
["x15",{"$error":"#NAME?"},null,null,null,null,null,null,null,null,null,null,null,null,null,null,null,null,null,0.28404000000000007,{"$error":"#NAME?"},0.28404000000000007,null,null,5,{"$f":"AA25","v":{"$error":"#NAME?"}},{"$f":"Z26","v":{"$error":"#NAME?"}},null,{"$error":"#NAME?"},{"$error":"#NAME?"}]
["x16",{"$error":"#NAME?"},null,null,null,null,null,null,null,null,null,null,null,null,null,null,null,null,null,0.3156000000000001,{"$error":"#NAME?"},0.3156000000000001,null,null,6,{"$f":"Z26","v":{"$error":"#NAME?"}},{"$f":"f(espressioneG,Z26)","v":{"$error":"#NAME?"}},null,{"$error":"#NAME?"},{"$error":"#NAME?"}]
["x17",{"$error":"#NAME?"},null,null,null,null,null,null,null,null,null,null,null,null,null,null,null,null,null,0.34716000000000014,{"$error":"#NAME?"},0.34716000000000014,null,null,6,{"$f":"AA27","v":{"$error":"#NAME?"}},{"$f":"Z28","v":{"$error":"#NAME?"}},null,{"$error":"#NAME?"},{"$error":"#NAME?"}]
[null,null,null,null,null,null,null,null,null,null,null,null,null,null,null,null,null,null,null,0.37872000000000017,{"$error":"#NAME?"},0.37872000000000017,null,null,7,{"$f":"Z28","v":{"$error":"#NAME?"}},{"$f":"f(espressioneG,Z28)","v":{"$error":"#NAME?"}},null,{"$error":"#NAME?"},{"$error":"#NAME?"}]
[null,null,null,null,null,null,null,null,null,null,null,null,null,null,null,null,null,null,null,0.4102800000000002,{"$error":"#NAME?"},0.4102800000000002,null,null,7,{"$f":"AA29","v":{"$error":"#NAME?"}},{"$f":"Z30","v":{"$error":"#NAME?"}},null,{"$error":"#NAME?"},{"$error":"#NAME?"}]
[null,null,null,null,null,null,null,null,null,null,null,null,null,null,null,null,null,null,null,0.44184000000000023,{"$error":"#NAME?"},0.44184000000000023,null,null,8,{"$f":"Z30","v":{"$error":"#NAME?"}},{"$f":"f(espressioneG,Z30)","v":{"$error":"#NAME?"}},null,{"$error":"#NAME?"},{"$error":"#NAME?"}]
[null,null,null,null,null,null,null,null,null,null,null,null,null,null,null,null,null,null,null,0.47340000000000027,{"$error":"#NAME?"},0.47340000000000027,null,null,8,{"$f":"AA31","v":{"$error":"#NAME?"}},{"$f":"Z32","v":{"$error":"#NAME?"}},null,{"$error":"#NAME?"},{"$error":"#NAME?"}]
[null,null,null,null,null,null,null,null,null,null,null,null,null,null,null,null,null,null,null,0.5049600000000003,{"$error":"#NAME?"},0.5049600000000003,null,null,9,{"$f":"Z32","v":{"$error":"#NAME?"}},{"$f":"f(espressioneG,Z32)","v":{"$error":"#NAME?"}},null,{"$error":"#NAME?"},{"$error":"#NAME?"}]
[null,null,null,null,null,null,null,null,null,null,null,null,null,null,null,null,null,null,null,0.53652000000000033,{"$error":"#NAME?"},0.53652000000000033,null,null,9,{"$f":"AA33","v":{"$error":"#NAME?"}},{"$f":"Z34","v":{"$error":"#NAME?"}},null,{"$error":"#NAME?"},{"$error":"#NAME?"}]
[null,null,null,null,null,null,null,null,null,null,null,null,null,null,null,null,null,null,null,0.56808000000000036,{"$error":"#NAME?"},0.56808000000000036,null,null,10,{"$f":"Z34","v":{"$error":"#NAME?"}},{"$f":"f(espressioneG,Z34)","v":{"$error":"#NAME?"}},null,{"$error":"#NAME?"},{"$error":"#NAME?"}]
[null,null,null,null,null,null,null,null,null,null,null,null,null,null,null,null,null,null,null,0.59964000000000039,{"$error":"#NAME?"},0.59964000000000039,null,null,10,{"$f":"AA35","v":{"$error":"#NAME?"}},{"$f":"Z36","v":{"$error":"#NAME?"}},null,{"$error":"#NAME?"},{"$error":"#NAME?"}]
[null,null,null,null,null,null,null,null,null,null,null,null,null,null,null,null,null,null,null,0.63120000000000043,{"$error":"#NAME?"},0.63120000000000043,null,null,11,{"$f":"Z36","v":{"$error":"#NAME?"}},{"$f":"f(espressioneG,Z36)","v":{"$error":"#NAME?"}},null,{"$error":"#NAME?"},{"$error":"#NAME?"}]
[null,null,null,null,null,null,null,null,null,null,null,null,null,null,null,null,null,null,null,0.66276000000000046,{"$error":"#NAME?"},0.66276000000000046,null,null,11,{"$f":"AA37","v":{"$error":"#NAME?"}},{"$f":"Z38","v":{"$error":"#NAME?"}},null,{"$error":"#NAME?"},{"$error":"#NAME?"}]
[null,null,null,null,null,null,null,null,null,null,null,null,null,null,null,null,null,null,null,0.69432000000000049,{"$error":"#NAME?"},0.69432000000000049,null,null,12,{"$f":"Z38","v":{"$error":"#NAME?"}},{"$f":"f(espressioneG,Z38)","v":{"$error":"#NAME?"}},null,{"$error":"#NAME?"},{"$error":"#NAME?"}]
[null,null,null,null,null,null,null,null,null,null,null,null,null,null,null,null,null,null,null,0.72588000000000052,{"$error":"#NAME?"},0.72588000000000052,null,null,12,{"$f":"AA39","v":{"$error":"#NAME?"}},{"$f":"Z40","v":{"$error":"#NAME?"}},null,{"$error":"#NAME?"},{"$error":"#NAME?"}]
[null,null,null,null,null,null,null,null,null,null,null,null,null,null,null,null,null,null,null,0.75744000000000056,{"$error":"#NAME?"},0.75744000000000056,null,null,13,{"$f":"Z40","v":{"$error":"#NAME?"}},{"$f":"f(espressioneG,Z40)","v":{"$error":"#NAME?"}},null,{"$error":"#NAME?"},{"$error":"#NAME?"}]
[null,null,null,null,null,null,null,null,null,null,null,null,null,null,null,null,null,null,null,0.78900000000000059,{"$error":"#NAME?"},0.78900000000000059,null,null,13,{"$f":"AA41","v":{"$error":"#NAME?"}},{"$f":"Z42","v":{"$error":"#NAME?"}},null,{"$error":"#NAME?"},{"$error":"#NAME?"}]
[null,null,null,null,null,null,null,null,null,null,null,null,null,null,null,null,null,null,null,0.82056000000000062,{"$error":"#NAME?"},0.82056000000000062,null,null,14,{"$f":"Z42","v":{"$error":"#NAME?"}},{"$f":"f(espressioneG,Z42)","v":{"$error":"#NAME?"}},null,{"$error":"#NAME?"},{"$error":"#NAME?"}]
[null,null,null,null,null,null,null,null,null,null,null,null,null,null,null,null,null,null,null,0.85212000000000065,{"$error":"#NAME?"},0.85212000000000065,null,null,14,{"$f":"AA43","v":{"$error":"#NAME?"}},{"$f":"Z44","v":{"$error":"#NAME?"}},null,{"$error":"#NAME?"},{"$error":"#NAME?"}]
[null,null,null,null,null,null,null,null,null,null,null,null,null,null,null,null,null,null,null,0.88368000000000069,{"$error":"#NAME?"},0.88368000000000069,null,null,15,{"$f":"Z44","v":{"$error":"#NAME?"}},{"$f":"f(espressioneG,Z44)","v":{"$error":"#NAME?"}},null,{"$error":"#NAME?"},{"$error":"#NAME?"}]
[null,null,null,null,null,null,null,null,null,null,null,null,null,null,null,null,null,null,null,0.91524000000000072,{"$error":"#NAME?"},0.91524000000000072,null,null,15,{"$f":"AA45","v":{"$error":"#NAME?"}},{"$f":"Z46","v":{"$error":"#NAME?"}},null,{"$error":"#NAME?"},{"$error":"#NAME?"}]
[null,null,null,null,null,null,null,null,null,null,null,null,null,null,null,null,null,null,null,0.94680000000000075,{"$error":"#NAME?"},0.94680000000000075,null,null,16,{"$f":"Z46","v":{"$error":"#NAME?"}},{"$f":"f(espressioneG,Z46)","v":{"$error":"#NAME?"}},null,{"$error":"#NAME?"},{"$error":"#NAME?"}]
[null,null,null,null,null,null,null,null,null,null,null,null,null,null,null,null,null,null,null,0.97836000000000078,{"$error":"#NAME?"},0.97836000000000078,null,null,16,{"$f":"AA47","v":{"$error":"#NAME?"}},{"$f":"Z48","v":{"$error":"#NAME?"}},null,{"$error":"#NAME?"},{"$error":"#NAME?"}]
[null,null,null,null,null,null,null,null,null,null,null,null,null,null,null,null,null,null,null,1.0099200000000008,{"$error":"#NAME?"},1.0099200000000008,null,null,17,{"$f":"Z48","v":{"$error":"#NAME?"}},{"$f":"f(espressioneG,Z48)","v":{"$error":"#NAME?"}},null,{"$error":"#NAME?"},{"$error":"#NAME?"}]
[null,null,null,null,null,null,null,null,null,null,null,null,null,null,null,null,null,null,null,{"$f":"T49+$T$11","v":1.0414800000000008},{"$error":"#NAME?"},1.0414800000000008,null,null,17,{"$f":"AA49","v":{"$error":"#NAME?"}},{"$f":"Z50","v":{"$error":"#NAME?"}},null,{"$error":"#NAME?"},{"$error":"#NAME?"}]
[null,null,null,null,null,null,null,null,null,null,null,null,null,null,null,null,null,null,null,1.0730400000000009,{"$error":"#NAME?"},1.0730400000000009,null,null,18,{"$f":"Z50","v":{"$error":"#NAME?"}},{"$f":"f(espressioneG,Z50)","v":{"$error":"#NAME?"}},null,{"$error":"#NAME?"},{"$error":"#NAME?"}]
[null,null,null,null,null,null,null,null,null,null,null,null,null,null,null,null,null,null,null,1.1046000000000009,{"$error":"#NAME?"},1.1046000000000009,null,null,18,{"$f":"AA51","v":{"$error":"#NAME?"}},{"$f":"Z52","v":{"$error":"#NAME?"}},null,{"$error":"#NAME?"},{"$error":"#NAME?"}]
[null,null,null,null,null,null,null,null,null,null,null,null,null,null,null,null,null,null,null,1.1361600000000009,{"$error":"#NAME?"},1.1361600000000009]
[null,null,null,null,null,null,null,null,null,null,null,null,null,null,null,null,null,null,null,1.167720000000001,{"$error":"#NAME?"},1.167720000000001]
[null,null,null,null,null,null,null,null,null,null,null,null,null,null,null,null,null,null,null,1.199280000000001,{"$error":"#NAME?"},1.199280000000001]
[null,null,null,null,null,null,null,null,null,null,null,null,null,null,null,null,null,null,null,1.230840000000001,{"$error":"#NAME?"},1.230840000000001]
[null,null,null,null,null,null,null,null,null,null,null,null,null,null,null,null,null,null,null,1.2624000000000011,{"$error":"#NAME?"},1.2624000000000011]
[null,null,null,null,null,null,null,null,null,null,null,null,null,null,null,null,null,null,null,1.2939600000000011,{"$error":"#NAME?"},1.2939600000000011]
[null,null,null,null,null,null,null,null,null,null,null,null,null,null,null,null,null,null,null,1.3255200000000011,{"$error":"#NAME?"},1.3255200000000011]
[null,null,null,null,null,null,null,null,null,null,null,null,null,null,null,null,null,null,null,1.3570800000000012,{"$error":"#NAME?"},1.3570800000000012]
[null,null,null,null,null,null,null,null,null,null,null,null,null,null,null,null,null,null,null,1.3886400000000012,{"$error":"#NAME?"},1.3886400000000012]
[null,null,null,null,null,null,null,null,null,null,null,null,null,null,null,null,null,null,null,1.4202000000000012,{"$error":"#NAME?"},1.4202000000000012]
[null,null,null,null,null,null,null,null,null,null,null,null,null,null,null,null,null,null,null,1.4517600000000013,{"$error":"#NAME?"},1.4517600000000013]
[null,null,null,null,null,null,null,null,null,null,null,null,null,null,null,null,null,null,null,1.4833200000000013,{"$error":"#NAME?"},1.4833200000000013]
[null,null,null,null,null,null,null,null,null,null,null,null,null,null,null,null,null,null,null,1.5148800000000013,{"$error":"#NAME?"},1.5148800000000013]
[null,null,null,null,null,null,null,null,null,null,null,null,null,null,null,null,null,null,null,1.5464400000000014,{"$error":"#NAME?"},1.5464400000000014]
[null,null,null,null,null,null,null,null,null,null,null,null,null,null,null,null,null,null,null,1.5780000000000014,{"$error":"#NAME?"},1.5780000000000014]